{"text_format":"3","workbook":"xlsx","n_sheets":2,"sheets":["Main","Summary"],"not_rendered":{"defined_names":1},"read":"whole","date_system":"1900"}

{"sheet":"Main","index":0,"n_rows":29,"n_cols":9,"rows_kept":29,"merged":[[0,0,0,8],[1,3,2,3],[1,4,2,6],[2,0,2,1],[3,0,3,1],[3,3,3,6],[4,0,4,5],[5,0,5,2],[6,0,6,4],[7,0,7,4],[8,0,8,4],[10,1,10,2],[10,4,10,6],[11,1,11,2],[11,4,11,6],[12,4,12,6],[13,4,13,6],[14,4,14,6],[15,4,15,6],[19,0,21,0],[23,0,26,0]]}
["BEC Chairperson's Summary Evaluation Sheet"]
["Overall Evaluation Threshold",null,{"$f":"G29","v":75},"BIDDING COMPANY NAME"]
["Bidder Score",null,{"$f":"SUM(H7:H8)","v":0}]
["Pass Fail",null,{"$f":"IF(C3<C2,\"FAIL\",\"PASS\")","v":"FAIL"}]
[]
["Sub Section Compliance",{"$nulls":4},"Min Score","Max Score","Bidder Score","Pass /Fail"]
[{"$f":"A20","v":"Resources"},{"$nulls":4},{"$f":"G23","v":36},{"$f":"H23","v":45},{"$f":"E23","v":0},{"$f":"IF(H7<F7,\"FAIL\",\"PASS\")","v":"FAIL"}]
[{"$f":"A24","v":"Proven Company Experience"},{"$nulls":4},{"$f":"G28","v":39},{"$f":"H28","v":55},{"$f":"E28","v":0},{"$f":"IF(H8<F8,\"FAIL\",\"PASS\")","v":"FAIL"}]
["TOTAL",{"$nulls":4},{"$f":"SUM(F7:F8)","v":75},{"$f":"SUM(G7:G8)","v":100},{"$f":"SUM(H7:H8)","v":0}]
[]
["Date",null,null,"EVALUATOR 1"]
["Time",null,null,"EVALUATOR 2"]
[{"$nulls":3},"EVALUATOR 3"]
[{"$nulls":3},"EVALUATOR 4"]
[{"$nulls":3},"EVALUATOR 5"]
[{"$nulls":3},"EVALUATOR 6"]
[]
[]
["Area","Sub Area","Response Form Section Reference","Measure","Score","Rating Options","Min","Max","Comments"]
["Resources","Senior Engineer or Engineer","3.1.1","Provide proof of available Certified Senior Engineer or Engineer AND a minimum of 4 to 5 years’ experience including related OEM or Distributor Certification. Please do not provide CV’s. Prove years of experience via reference letters  worked on. The reference letter MUST refer to the resource of whose certification is provided.The certifications in the tables below is the minimum required, Higher certification levels can be submitted and will be accepted.\nA Copy of the Certificate for each of the resources that is being submitted is required. \nPlease include a full reference to the section and page number for the certificates and references",null,"15 Points  - More than 1  Certified Senior Engineer or Engineer , with minimum 4 to 5 years experience including OEM/Distributor Certification for the related Technology(Rohill). Proof Provided and valid.\n12 Points  - 1 Resources Supplied with  Certified Senior Engineer or Engineer, with minimum of 4 to 5 years experience OEM/Distributor Certification for the related Technology(Rohill). Proof Provided and valid.\n2 Points  - 1 Resources Supplied with  Certified Senior Engineer or Engineer , with less than 4 years experience and no related OEM/Distributor certification for the related Technology(Rohill)\n0 Points - Does Not Comply at all or  No Response or Incomplete Response, NO Proof Provided(no References)",12,15]
[null,"Technician Resources – Technician","3.1.2.1","Provide proof of valid certified technical resources for the areas in the table below. Please do not provide CV’s. Prove years of experience via reference letters for worked on. Only the minimum as indicated in the tables are required. Additional can be supplied. \nThe certifications in the tables below is the minimum required, Higher certification levels can be submitted and will be accepted.\nThe reference letter MUST refer to the resource of whose certification is provided.\nA Copy of the Certificate for each of the resources that is being submitted is required. \nPlease include a full reference to the section and page number for the certificates and references\nIf one resource has more than one Certification the resource can be used multiple times.\n",null,"15 Points  - Supplied More than 2 minimum  Certified Technicians including  including OEM/Distributor Certification for the related Technology(Rohill) and with minimum 3 to 4 years experience. Proof provided and valid\n12 Points  - Supplied with 2 minimum Certified Technicians  including  including OEM/Distributor Certification for the related Technology(Rohill) and with minimum 3 to 4 years experience. Proof provided and valid\n5 Points  - Supplied the less than the minimum  Certified Technicians  including  including OEM/Distributor Certification for the related Technology(Rohill).\n0 Points - Does Not Comply at all or  No Response or Incomplete Response, NO Proof Provided(no References)",12,15]
[null,"Technical Resources – Assitant Technicians","3.1.2.2","Provide proof of valid certified technical resources for the areas in the table below. Please do not provide CV’s. Prove years of experience via reference letters for worked on. Only the minimum as indicated in the tables are required. Additional can be supplied. \nThe certifications in the tables below is the minimum required, Higher certification levels can be submitted and will be accepted.\nThe reference letter MUST refer to the resource of whose certification is provided.\nA Copy of the Certificate for each of the resources that is being submitted is required. \nPlease include a full reference to the section and page number for the certificates and references\nIf one resource has more than one Certification the resource can be used multiple times.\n",null,"15 Points  - Supplied More than 2 minimum  Certified Assistant Technicians  with minimum 2 to 3 years experience the related technology. Proof provided and valid\n10 Points  - Supplied  2 minimum  Certified Assistant Technicians  with minimum 2 to 3 years experience the related technology. Proof provided and valid\n5 Points  - Supplied the less than minimum Certified Assitant Technicians  with minimum 2 to 3 years experience the related technology . Proof provided and valid\n0 Points - Does Not Comply at all or  No Response or Incomplete Response, NO Proof Provided(no References)",12,15]
["Section TOTALS",{"$nulls":3},{"$f":"SUM(E20:E22)","v":0},null,{"$f":"SUM(G20:G22)","v":36},{"$f":"SUM(H20:H22)","v":45}]
["Proven Company Experience","Supply and installation of Tetra Radio Communicatiosn Systems References (TNX, Tetra Call Manager, Voice Logging)","3.2.1.1","Provide contactable reference letter's with name & surname, email address and mobile numbers in a company letterhead as proof of Tetra Radio Communications System Supply and installation and core Rohil hardware and related software maintenance experience.\n\nInclude a minimum of:\n• 2 reference clients with minimum 5 years expirience in Tetra Radio Communication System deployment (TNX, Tetra Call Manager, Voice Logging) at each Client Site with more than 2 sites per Client and configured failover. \n",null,"15 Points - Provided more than 2 References, References could be verified and environment size is larger than the minimum required\n12 Points - Provided 2 References, References could be verified and environment size is equal to minimum required\n5 Points  - Provided less than 2 References OR References could not be verified OR environment size is less than the minimum required\n0 Points - Does Not Comply at all or No Response or Incomplete Response, No references Provided",12,15]
[null,"Maitenance and Support of Tetra Radio Communicatiosn Systems References (TNX, Tetra Call Manager, Voice Logging)","3.2.1.2","Provide contactable reference letter's with name & surname, email address and mobile numbers in a company letterhead as proof of Tetra Radio Communications System Supply and installation and core Rohil hardware and related software maintenance experience.\n\nInclude a minimum of:\n• 2 reference clients with minimum 5 years expirience in Tetra Radio Communication System maitenance and support (TNX/Analogue Gateway,  Tetra Call Manager, Voice Logging) at each Client Site with more than 2 sites per Client and configured failover. \n",null,"15 Points - Provided more than 2 References, References could be verified and environment size is equal or larger than the minimum required\n12 Points - Provided 2 References, References could be verified and environment size is equal to minimum required\n5 Points  - Provided less than 2 References OR References could not be verified OR environment size is less than the minimum required\n0 Points - Does Not Comply at all or No Response or Incomplete Response, No references Provided",12,15]
[null,"Supply, Install, Maitenance and Support of Panic alarm intergrated with Tetra network References (Rohil or any another moderms or panic alarms)",null,"Provide contactable reference letter's with name & surname, email address and mobile numbers in a company letterhead as proof of Tetra Radio Communications System Supply and installation and core Rohil hardware and related software maintenance experience.\n\nInclude a minimum of:\n• 1 reference client with minimum 5 years expirience in supply, install, maintenance and support Panic alarm intergrated with Tetra network References (Rohil or any another moderms or panic alarms) at Client Site. \n",null,"10 Points - Provided more than 2 References, References could be verified and environment size is equal or larger than the minimum required\n5 Points - Provided 2 References, References could be verified and environment size is equal to minimum required\n2 Points  - Provided less than 2 References OR References could not be verified OR environment size is less than the minimum required\n0 Points - Does Not Comply at all or No Response or Incomplete Response, No references Provided",5,10]
[null,"Maitenance and Support of Tetra Radio Communicatiosn Systems Hardware Devices (Sepura radio including safely intrinsict radios, Airbas, )","3.2.1.3","Provide contactable reference letter's with name & surname, email address and mobile numbers in a company letterhead as proof of Tetra Radio Communications System Supply and installation and core Rohil hardware and related software maintenance experience.\n\nInclude a minimum of:\n• 2 reference clients with minimum 5 years expirience in Tetra Radio Communication System maitenance and support (Sepura radio including safely intrinsict radios, Airbas) at each Client Site with more than 2 sites per Client and configured failover. Configured with minimum 100 raadio devices.\n",null,"15 Points - Provided more than 2 References, References could be verified and environment size is equal or larger than the minimum required\n12 Points - Provided 2 References, References could be verified and environment size is equal to minimum required\n5 Points  - Provided less than 2 References OR References could not be verified OR environment size is less than the minimum required\n0 Points - Does Not Comply at all or No Response or Incomplete Response, No references Provided",10,15]
["Section TOTALS",{"$nulls":3},{"$f":"SUM(E24:E27)","v":0},null,{"$f":"SUM(G24:G27)","v":39},{"$f":"SUM(H24:H27)","v":55}]
["TOTALS",{"$nulls":3},{"$f":"SUM(E28,E23)","v":0},null,{"$f":"SUM(G28,G23)","v":75},{"$f":"SUM(H28,H23)","v":100}]

{"sheet":"Summary","index":1,"n_rows":4,"n_cols":4,"rows_kept":4}
["Functional","Minimum Score","Maximum Score","Min %"]
[{"$f":"Main!A7","v":"Resources"},{"$f":"Main!G23","v":36},{"$f":"Main!H23","v":45},{"$f":"B2/C2","v":{"v":0.8,"d":"80%"}}]
[{"$f":"Main!A8","v":"Proven Company Experience"},{"$f":"Main!G28","v":39},{"$f":"Main!H28","v":55},{"$f":"B3/C3","v":{"v":0.7090909090909091,"d":"71%"}}]
[null,{"$f":"SUBTOTAL(109,Table1[Minimum Score])","v":75},{"$f":"SUBTOTAL(109,Table1[Maximum Score])","v":100}]